Department Family,Date Paid,Expense Type,Expense Area,Supplier,Transaction Number,Amount,Vat Inclusive
Crown Prosecution Service ,04/10/21,Crown Court Very High Cost Cases Full Scheme,Enforcement Team,Sutcliffe Andrew 19507B,100273/270421,"43,140.00",Y
Crown Prosecution Service ,04/10/21,External legal advice - Civil litigation,Other Corporate Programme Payments,Government Legal Department,497647,"61,040.28",Y
Crown Prosecution Service ,04/10/21,Crown Court Graduated Fee Scheme,Cymru Wales South East Crown Court,30 Park Place Chambers,621089-4/NF,"35,886.42",Y
Crown Prosecution Service ,04/10/21,National Insurance payable,Balance Sheet,HM Revenue and Customs,948PB000021422206,"4,281,570.68",
Crown Prosecution Service ,04/10/21,Apprenticeship Levy payments Permanent,Other Corporate Programme Payments,HM Revenue and Customs,948PB000021422206,"108,308.68",
Crown Prosecution Service ,04/10/21,PAYE payable,Balance Sheet,HM Revenue and Customs,948PB000021422206,"3,428,396.54",
Crown Prosecution Service ,04/10/21,Apprenticeship Levy payments Permanent,Other Corporate Admin Payments,HM Revenue and Customs,948PB000021422206,"6,913.32",
Crown Prosecution Service ,04/10/21,IT non capital software licences,Legal Reference and ICT Licenses,Specialist Computer Centres Plc,OP/ N033681,"62,068.76",Y
Crown Prosecution Service ,04/10/21,IT non capital software licences,DTS Programme Project Cost,Specialist Computer Centres Plc,OP/ N033681,"31,034.39",Y
Crown Prosecution Service ,05/10/21,Other Staff Costs,Operational Security Team,Cabinet Office RM Shared Services,3809900,"57,064.68",Y
Crown Prosecution Service ,05/10/21,IT services,DTS Programme Project Cost,FlyForm LTD Cardiff,INV-10462,"21,895.99",
Crown Prosecution Service ,05/10/21,Recoverable VAT control,Balance Sheet,FlyForm LTD Cardiff,INV-10462,"4,379.21",Y
Crown Prosecution Service ,07/10/21,Lease liability non current lease payments,Balance Sheet,Government Property Agency London,12460,"210,288.00",
Crown Prosecution Service ,07/10/21,Lease liability non current lease payments,Balance Sheet,Government Property Agency London,12463,"156,900.00",
Crown Prosecution Service ,07/10/21,Lease liability non current lease payments,Balance Sheet,Government Property Agency London,12468,"28,800.00",
Crown Prosecution Service ,07/10/21,Short term leases from 2 to 12 months: Property,Estate and FM: Programme,Government Property Agency London,12473,"48,123.00",
Crown Prosecution Service ,07/10/21,National non domestic rates,Estate and FM: Programme,Government Property Agency London,12484,"823,459.09",
Crown Prosecution Service ,07/10/21,National non domestic rates,Estate and FM: Administration,Government Property Agency London,12484,"168,660.29",
Crown Prosecution Service ,07/10/21,Crown Court Graduated Fee Scheme,London South Crown Court Unit,Blackfriars Chambers,68071CEM,"42,196.20",Y
Crown Prosecution Service ,07/10/21,Crown Court Graduated Fee Scheme,London South Crown Court Unit,Blackfriars Chambers,68071RJ,"28,334.40",Y
Crown Prosecution Service ,08/10/21,Crown Court Graduated Fee Scheme,East of England Crown Court,Nine Bedford Row (9 Bedford Row),143110jb,"36,789.24",Y
Crown Prosecution Service ,11/10/21,Lease liability non current lease payments,Balance Sheet,Government Property Agency London,00000001/12764,"106,451.25",
Crown Prosecution Service ,11/10/21,Lease liability non current lease payments,Balance Sheet,Government Property Agency London,00000001/12765,"80,407.80",
Crown Prosecution Service ,11/10/21,Crown Court Graduated Fee Scheme,London North Complex Casework Unit,2 Hare Court Chambers -Chambers of Orlando Pownall,117096!,"30,298.80",Y
Crown Prosecution Service ,11/10/21,Crown Court Very High Cost Cases Full Scheme,Cymru Wales Complex Casework Unit,Guildhall Chambers Bristol,186502       AL,"36,705.00",Y
Crown Prosecution Service ,11/10/21,Crown Court Very High Cost Cases Full Scheme,Cymru Wales Complex Casework Unit,Guildhall Chambers Bristol,186502  SJ,"32,492.20",Y
Crown Prosecution Service ,11/10/21,IT services,DTS Programme Project Cost,Accenture (UK) Ltd London,3003520615,"33,240.00",Y
Crown Prosecution Service ,11/10/21,Recoverable VAT control,Balance Sheet,CGI IT UK Ltd,GB014067360,"16,621.82",Y
Crown Prosecution Service ,11/10/21,IT services,Service Desk Contract,CGI IT UK Ltd,GB014067360,"83,109.08",
Crown Prosecution Service ,11/10/21,Crown Court Graduated Fee Scheme,London North Complex Casework Unit,9 Gough Chambers London,TL376924,"60,604.20",Y
Crown Prosecution Service ,12/10/21,Recoverable VAT control,Balance Sheet,Mendip Media Group Ltd Tiverton,0000000178,"7,385.40",Y
Crown Prosecution Service ,12/10/21,Transcriptions and Translation,Other Corporate Programme Payments,Mendip Media Group Ltd Tiverton,0000000178,"36,927.00",
Crown Prosecution Service ,12/10/21,External legal advice - HR casework,Litigation,Government Legal Department,499782,"47,249.16",Y
Crown Prosecution Service ,12/10/21,Transcriptions and Translation,Other Corporate Programme Payments,AVR Transcription Ltd Bolton,AUG21-35287,"50,035.84",
Crown Prosecution Service ,12/10/21,Recoverable VAT control,Balance Sheet,AVR Transcription Ltd Bolton,AUG21-35287,"10,007.17",Y
Crown Prosecution Service ,12/10/21,Recoverable VAT control,Balance Sheet,AVR Transcription Ltd Bolton,Sep21-35382,"9,055.87",Y
Crown Prosecution Service ,12/10/21,Transcriptions and Translation,Other Corporate Programme Payments,AVR Transcription Ltd Bolton,Sep21-35382,"45,279.32",
Crown Prosecution Service ,13/10/21,Crown Court Graduated Fee Scheme,London North Crown Court Unit,15 New Bridge Street,676839-MJC,"27,330.48",Y
Crown Prosecution Service ,13/10/21,Crown Court Graduated Fee Scheme,West Midlands British Transport Police,Church Court Chambers,68615BAQC2,"76,350.36",Y
Crown Prosecution Service ,13/10/21,Crown Court Graduated Fee Scheme,West Midlands British Transport Police,Church Court Chambers,68615MK3,"37,426.32",Y
Crown Prosecution Service ,14/10/21,Crown Court Graduated Fee Scheme,Thames and Chiltern Complex Casework Unit,2 Kings Bench Walk London,273650-CHE-OFB4,"25,513.87",Y
Crown Prosecution Service ,14/10/21,Crown Court Graduated Fee Scheme,Thames and Chiltern Complex Casework Unit,2 Kings Bench Walk London,273650-MJS-OFB3,"37,579.56",Y
Crown Prosecution Service ,14/10/21,Crown Court Graduated Fee Scheme,Thames and Chiltern Complex Casework Unit,2 Kings Bench Walk London,273650-MJS-OFB4,"28,339.80",Y
Crown Prosecution Service ,15/10/21,Crown Court Graduated Fee Scheme,London North Complex Casework Unit,2 Hare Court Chambers -Chambers of Orlando Pownall,115654...,"26,267.52",Y
Crown Prosecution Service ,15/10/21,Crown Court Graduated Fee Scheme,London North Complex Casework Unit,6 Kings Bench Walk- Chambers of D Fisher & D Perry,99855 TC,"53,693.88",Y
Crown Prosecution Service ,15/10/21,Crown Court Graduated Fee Scheme,West Midlands Complex Casework Unit,QEB Hollis Whiteman Chambers,EB 108816 B,"58,084.20",Y
Crown Prosecution Service ,15/10/21,Crown Court Graduated Fee Scheme,West Midlands Complex Casework Unit,QEB Hollis Whiteman Chambers,PDY 108816 A,"31,954.80",Y
Crown Prosecution Service ,15/10/21,Crown Court Graduated Fee Scheme,London North Complex Casework Unit,3 Raymond Buildings,WEJ/249090,"31,902.60",Y
Crown Prosecution Service ,18/10/21,Crown Court Graduated Fee Scheme,South West Crown Court: North,Queen Square Chambers,147678RS,"25,195.92",Y
Crown Prosecution Service ,18/10/21,Crown Court Graduated Fee Scheme,South East Crown Court,2 Dr Johnson's Buildings,160406pde3,"30,429.48",Y
Crown Prosecution Service ,18/10/21,Recoverable VAT control,Balance Sheet,Lumen Technologies UK Ltd,246237960/1058221,"30,004.34",Y
Crown Prosecution Service ,18/10/21,IT services,PSN Services Contract,Lumen Technologies UK Ltd,246237960/1058221,"150,021.70",
Crown Prosecution Service ,18/10/21,Recoverable VAT control,Balance Sheet,Lumen Technologies UK Ltd,246237963/1058226,"26,018.60",Y
Crown Prosecution Service ,18/10/21,IT services,PSN Connectivity Contract,Lumen Technologies UK Ltd,246237963/1058226,"130,093.03",
Crown Prosecution Service ,18/10/21,Crown Court Graduated Fee Scheme,London North Crown Court Unit,15 New Bridge Street,674454-RE,"42,314.76",Y
Crown Prosecution Service ,18/10/21,Short term leases from 2 to 12 months: IT and Equipment,Print Contract,Xerox (UK) Ltd,900213570,"212,294.43",
Crown Prosecution Service ,18/10/21,Recoverable VAT control,Balance Sheet,Xerox (UK) Ltd,900213570,"42,458.89",Y
Crown Prosecution Service ,18/10/21,Recoverable VAT control,Balance Sheet,CGI IT UK Ltd,GB014067730,"24,971.40",Y
Crown Prosecution Service ,18/10/21,IT services,DTS Programme Project Cost,CGI IT UK Ltd,GB014067730,"124,857.00",
Crown Prosecution Service ,18/10/21,Crown Court Graduated Fee Scheme,South West Crown Court: South,Walnut House Chambers of Geoffrey Mercer QC,hatrey SRL,"48,615.42",Y
Crown Prosecution Service ,18/10/21,IT services,DTS Programme Project Cost,eSynergy Solutions Ltd,INV00000308,"78,948.00",Y
Crown Prosecution Service ,18/10/21,IT services,End User Computing Contract,WIPRO Holdings London,INV83065848,"106,626.50",
Crown Prosecution Service ,18/10/21,Recoverable VAT control,Balance Sheet,WIPRO Holdings London,INV83065848,"21,325.30",Y
Crown Prosecution Service ,18/10/21,General Management Consultancy Advice,Commercial,Reed Talent Solutions London,R40959889M,"40,128.00",Y
Crown Prosecution Service ,19/10/21,Crown Court Graduated Fee Scheme,Thames Chiltern Crown Court Unit,2 Kings Bench Walk London,290395-MJS,"41,692.68",Y
Crown Prosecution Service ,19/10/21,Crown Court Graduated Fee Scheme,Thames Chiltern Crown Court Unit,2 Kings Bench Walk London,290395-OW,"29,050.80",Y
Crown Prosecution Service ,19/10/21,General Professional Services,Strategy and Policy,Reed Talent Solutions London,R40959888M,"40,128.00",Y
Crown Prosecution Service ,20/10/21,Professional subscriptions and memberships,Operational Change,Crimeline Training Ltd Wigan,INV-14048,"39,783.16",Y
Crown Prosecution Service ,20/10/21,Professional subscriptions and memberships,London North Management Team,Law Society,INV200588394,"45,957.00",
Crown Prosecution Service ,20/10/21,Other Staff Costs,Other Corporate Admin Payments,Reward Gateway (UK) Ltd,UK036972SI,"36,399.60",Y
Crown Prosecution Service ,21/10/21,Crown Court Graduated Fee Scheme,North West Complex Casework Unit,Harrington Street Chambers,1144521/WB,"31,668.24",Y
Crown Prosecution Service ,21/10/21,IT non capital software licences,Legal Reference and ICT Licenses,Trustmarque Solutions Ltd,2327064,"453,019.46",
Crown Prosecution Service ,21/10/21,Recoverable VAT control,Balance Sheet,Trustmarque Solutions Ltd,2327064,"90,603.89",Y
Crown Prosecution Service ,21/10/21,Recoverable VAT control,Balance Sheet,Trustmarque Solutions Ltd,2327106,"510,008.00",Y
Crown Prosecution Service ,21/10/21,IT non capital software licences,Legal Reference and ICT Licenses,Trustmarque Solutions Ltd,2327106,"2,550,040.00",
Crown Prosecution Service ,21/10/21,Recoverable VAT control,Balance Sheet,Trustmarque Solutions Ltd,2327266,"7,895.60",Y
Crown Prosecution Service ,21/10/21,IT non capital software licences,Legal Reference and ICT Licenses,Trustmarque Solutions Ltd,2327266,"39,478.00",
Crown Prosecution Service ,21/10/21,Crown Court Graduated Fee Scheme,London North Complex Casework Unit,QEB Hollis Whiteman Chambers,AK 107619 B,"30,219.36",Y
Crown Prosecution Service ,21/10/21,Professional subscriptions and memberships,London South Management Team,Law Society,INV200588908,"42,233.00",
Crown Prosecution Service ,22/10/21,IT non capital equipment and consumables,DTS Programme Project Cost,Vohkus Limited Fareham,0000001200,"52,188.00",Y
Crown Prosecution Service ,22/10/21,Crown Court Graduated Fee Scheme,East of England RASSO Unit,Red Lion Chambers (18 RLC),156334CPXtrial,"41,861.26",Y
Crown Prosecution Service ,22/10/21,Data Communications,PSN Services Contract,Lumen Technologies UK Ltd,242630783/1054956,"37,673.52",Y
Crown Prosecution Service ,22/10/21,Crown Court Graduated Fee Scheme,North West Crown Court Hub,18 St John Street - Chambers of Peter Birkett QC,284582-2/MAB,"50,031.00",Y
Crown Prosecution Service ,22/10/21,External legal advice - Civil litigation,Other Corporate Programme Payments,Government Legal Department,498806,"113,836.93",Y
Crown Prosecution Service ,22/10/21,IT non capital software licences,Legal Reference and ICT Licenses,WIPRO Holdings London,83066530,"83,806.80",Y
Crown Prosecution Service ,22/10/21,Recoverable VAT control,Balance Sheet,WIPRO Holdings London,83066532,"18,150.00",Y
Crown Prosecution Service ,22/10/21,IT services,End User Computing Contract,WIPRO Holdings London,83066532,"90,750.00",
Crown Prosecution Service ,22/10/21,Crown Court Graduated Fee Scheme,London North Complex Casework Unit,6 Kings Bench Walk- Chambers of D Fisher & D Perry,99816 Hand TC,"26,686.20",Y
Crown Prosecution Service ,22/10/21,IT services,DTS Programme Project Cost,Mobilise Cloud Services Limited London,CPSINV025,"31,151.27",Y
Crown Prosecution Service ,22/10/21,Recoverable VAT control,Balance Sheet,CGI IT UK Ltd,GB014067680,"115,059.96",Y
Crown Prosecution Service ,22/10/21,IT services,Apps and Hosting Contract,CGI IT UK Ltd,GB014067680,"575,299.78",
Crown Prosecution Service ,22/10/21,Recoverable VAT control,Balance Sheet,CGI IT UK Ltd,GB014067689,"15,730.42",Y
Crown Prosecution Service ,22/10/21,IT services,Apps and Hosting Contract,CGI IT UK Ltd,GB014067689,"78,652.10",
Crown Prosecution Service ,22/10/21,IT services,DTS Programme Project Cost,eSynergy Solutions Ltd,INV00000293,"179,966.16",Y
Crown Prosecution Service ,22/10/21,Professional subscriptions and memberships,Mersey Cheshire Area Business Centre,Law Society,INV200591856,"28,026.00",
Crown Prosecution Service ,22/10/21,Salary sacrifice suspense,Balance Sheet,Edenred,INV24344432,"23,368.25",
Crown Prosecution Service ,22/10/21,Other Staff Costs,Finance Operations,Edenred,INV24344432,"9,193.45",
Crown Prosecution Service ,25/10/21,Lease liability non current lease payments,Balance Sheet,Government Property Agency London,00000001/12821,"107,209.67",
Crown Prosecution Service ,25/10/21,Lease liability non current lease payments,Balance Sheet,Government Property Agency London,00000001/12822,"153,116.88",
Crown Prosecution Service ,25/10/21,Lease liability non current lease payments,Balance Sheet,Government Property Agency London,00000001/12828,"68,483.20",
Crown Prosecution Service ,25/10/21,Lease liability non current lease payments,Balance Sheet,Government Property Agency London,00000001/12834,"97,807.73",
Crown Prosecution Service ,25/10/21,Crown Court Graduated Fee Scheme,North West Crown Court Hub,Harrington Street Chambers,1142201/MCL,"34,137.12",Y
Crown Prosecution Service ,25/10/21,Crown Court Graduated Fee Scheme,West Midlands Complex Casework Unit,Red Lion Chambers (18 RLC),163210JBN,"27,141.24",Y
Crown Prosecution Service ,25/10/21,Crown Court Very High Cost Cases Full Scheme,West Midlands Complex Casework Unit,Furnival Chambers,164338 NH Op Fort18,"31,707.20",Y
Crown Prosecution Service ,25/10/21,Crown Court Very High Cost Cases Full Scheme,West Midlands Complex Casework Unit,Furnival Chambers,170697 CH Op Fort18,"68,292.92",Y
Crown Prosecution Service ,25/10/21,Recoverable VAT control,Balance Sheet,Trustmarque Solutions Ltd,2328376,"9,173.60",Y
Crown Prosecution Service ,25/10/21,IT non capital software licences,Legal Reference and ICT Licenses,Trustmarque Solutions Ltd,2328376,"45,868.01",
Crown Prosecution Service ,25/10/21,Crown Court Very High Cost Cases Full Scheme,North West Complex Casework Unit,Lincoln House Chambers,244149 LK ST 2,"27,589.00",Y
Crown Prosecution Service ,25/10/21,Crown Court Graduated Fee Scheme,North West Complex Casework Unit,New Park Court Chambers Leeds,356107-7/CS,"34,369.86",Y
Crown Prosecution Service ,25/10/21,Crown Court Graduated Fee Scheme,North West Crown Court Hub,Exchange Chambers - Manchester,542230 DPB,"28,911.48",Y
Crown Prosecution Service ,27/10/21,Crown Court Graduated Fee Scheme,London North Complex Casework Unit,6 Kings Bench Walk- Chambers of D Fisher & D Perry,101568 JH-1,"29,892.60",Y
Crown Prosecution Service ,27/10/21,Recoverable VAT control,Balance Sheet,WIPRO Holdings London,83066790,"10,883.65",Y
Crown Prosecution Service ,27/10/21,IT services,End User Computing Contract,WIPRO Holdings London,83066790,"54,418.26",
Crown Prosecution Service ,27/10/21,IT services,DTS Programme Project Cost,CGI IT UK Ltd,GB014067918,"53,960.02",Y
Crown Prosecution Service ,27/10/21,IT services,DTS Programme Project Cost,CGI IT UK Ltd,GB014068272,"41,215.20",Y
Crown Prosecution Service ,27/10/21,Other managed/contractor services,DTS Programme Project Cost,Equal Experts London,INV-9400,"159,574.50",Y
Crown Prosecution Service ,28/10/21,Crown Court Graduated Fee Scheme,London North Complex Casework Unit,Foundry Chambers (9-12 Bell Yard),194377-1/HP,"34,673.62",Y
Crown Prosecution Service ,28/10/21,IT non capital software licences,Legal Reference and ICT Licenses,Trustmarque Solutions Ltd,2327062,"145,562.40",Y
Crown Prosecution Service ,28/10/21,IT non capital software licences,Legal Reference and ICT Licenses,Trustmarque Solutions Ltd,2327063,"135,336.24",
Crown Prosecution Service ,28/10/21,Recoverable VAT control,Balance Sheet,Trustmarque Solutions Ltd,2327063,"27,067.25",Y
Crown Prosecution Service ,28/10/21,Crown Court Graduated Fee Scheme,North West Crown Court Hub,18 St John Street - Chambers of Peter Birkett QC,284582-2/DC,"25,012.80",Y
Crown Prosecution Service ,28/10/21,Recoverable VAT control,Balance Sheet,CGI IT UK Ltd,GB014068439,"11,054.73",Y
Crown Prosecution Service ,28/10/21,IT services,Apps and Hosting Contract,CGI IT UK Ltd,GB014068439,"55,273.65",
Crown Prosecution Service ,28/10/21,IT non capital software licences,Legal Reference and ICT Licenses,Avature Limited London,UK03102,"153,120.00",Y
Crown Prosecution Service ,29/10/21,Crown Court Graduated Fee Scheme,South East Complex Casework Unit,Westgate Chambers,116286DS,"36,252.30",Y
Crown Prosecution Service ,29/10/21,Crown Court Graduated Fee Scheme,South East Complex Casework Unit,Westgate Chambers,117888GBU,"25,217.16",Y
Crown Prosecution Service ,29/10/21,Crown Court Graduated Fee Scheme,London North Complex Casework Unit,Foundry Chambers (9-12 Bell Yard),187309/AH,"69,889.85",Y
Crown Prosecution Service ,29/10/21,Crown Court Graduated Fee Scheme,East Midlands Crown Court Section,36 Bedford Row,197954-WH1,"45,838.31",Y
Crown Prosecution Service ,29/10/21,Professional subscriptions and memberships,North East Area Business Centre,Law Society,INV200601097,"26,962.00",
Crown Prosecution Service ,29/10/21,Office equipment and furniture Non capital purchases,Estate and FM: Programme,Senator International Ltd Lancashire,S01694712,"26,186.58",Y
